bitfinex/quotes_SOLUSD_20250406
["timestamp","ask_amount","ask_price","bid_price","bid_amount"]
[1743980407323,82.89656157,105.93,105.89,0.03]
[1743980407530,18.64964886,105.93,105.89,46.77634241]
[1743980407744,46.46201927,105.92,105.89,0.31432314]
[1743980407951,18.64964886,105.93,105.89,0.03]
[1743980408228,323.98,105.94,105.91,0.28432314]
[1743980408531,57.66201927,105.96,105.91,46.74634241]
[1743980408733,11.2,105.96,105.92,46.46201927]
[1743980408941,46.46201927,105.95,105.91,9.72572314]
[1743980409255,11.2,105.96,105.91,56.18804241]
[1743980409643,57.66201927,105.96,105.91,56.18804241]
[1743980409844,57.66201927,105.96,105.93,0.28432314]
[1743980410047,46.46201927,105.94,105.9,0.28432314]
[1743980410369,46.46201927,105.92,105.89,6.2803]
[1743980410740,18.64964886,105.95,105.89,6.2803]
[1743980410938,46.46201927,105.93,105.89,6.2803]
[1743980411145,55.90211927,105.93,105.89,6.2803]
[1743980411546,46.46201927,105.92,105.89,6.2803]
[1743980411956,18.64964886,105.95,105.89,62.18591927]
[1743980412153,46.46201927,105.94,105.89,62.18591927]
[1743980412476,46.46201927,105.9,105.89,0.03]
[1743980412777,76.31166813,105.9,105.89,0.03]
[1743980413248,11.2,105.9,105.89,0.03]
[1743980413450,67.10481927,105.9,105.89,0.03]
[1743980413677,11.2,105.9,105.89,0.03]
[1743980413974,57.66201927,105.9,105.89,0.03]
[1743980414271,85.75446813,105.9,105.89,0.03]
[1743980414472,57.66201927,105.9,105.89,0.03]
[1743980414840,11.2,105.9,105.89,0.03]
[1743980415471,46.46201927,105.93,105.89,46.77634241]
[1743980415672,11.2,105.94,105.89,0.31432314]
[1743980415967,11.2,105.94,105.9,46.46201927]
[1743980416168,11.2,105.94,105.91,0.28432314]
[1743980416360,46.46201927,105.96,105.92,46.74634241]
[1743980416536,46.46201927,105.95,105.92,0.28432314]
[1743980416871,46.46201927,105.94,105.9,0.28432314]
[1743980417267,9.4389,105.95,105.9,9.72702314]
[1743980417461,46.46201927,105.94,105.9,9.72702314]
[1743980417659,46.46201927,105.95,105.9,56.18904241]
[1743980417980,46.46201927,105.94,105.9,0.28432314]
[1743980418140,46.46201927,105.93,105.89,1.5745]
[1743980418337,57.66201927,105.92,105.89,0.03]
[1743980418573,56.66201927,105.92,105.89,0.03]
[1743980418963,46.46201927,105.9,105.89,0.03]
[1743980419340,55.90421927,105.91,105.89,0.03]
[1743980419583,46.46201927,105.9,105.89,0.03]
[1743980420066,29.84964886,105.92,105.89,0.03]
[1743980420067,11.2,105.92,105.89,0.03]
[1743980420238,11.18,105.95,105.9,46.46201927]
[1743980420435,57.64201927,105.95,105.89,1.6696]
[1743980420638,11.18,105.95,105.92,6.78742314]
[1743980421254,11.18,105.95,105.92,16.22802314]
[1743980421761,324.24,105.96,105.92,16.22802314]
[1743980421762,46.46201927,105.97,105.92,62.69004241]
[1743980421966,46.46201927,105.97,105.92,16.22802314]
[1743980422278,46.46201927,105.97,105.92,62.69004241]
[1743980422482,20.616,105.98,105.92,62.69004241]
[1743980422483,0.063,105.98,105.95,46.46201927]
[1743980422647,0.063,105.98,105.95,0.28432314]
[1743980423379,0.063,105.98,105.95,9.72252314]
[1743980423569,0.063,105.98,105.97,46.74634241]
[1743980423776,0.063,105.98,105.97,46.88850398]
[1743980423969,0.063,105.98,105.97,65.53815284]
[1743980424281,0.063,106.04,106.0,18.64964886]
[1743980424457,0.063,106.04,106.03,0.28432314]
[1743980424858,0.063,106.04,106.03,46.74634241]
[1743980425078,0.063,106.04,106.03,65.53815284]
[1743980425287,0.063,106.04,106.03,74.96935284]
[1743980425508,0.063,106.04,106.02,46.46201927]
[1743980425666,0.063,106.04,106.01,46.74634241]
[1743980426185,0.063,106.04,106.02,46.46201927]
[1743980426381,0.063,106.04,106.03,46.74634241]
[1743980426556,0.063,106.04,106.03,0.28432314]
[1743980426761,0.063,106.04,106.03,46.74634241]
[1743980427264,0.063,106.04,106.03,9.71552314]
[1743980427467,0.063,106.04,106.03,79.13564854]
[1743980427681,0.063,106.04,106.03,69.70444854]
[1743980427989,0.063,106.04,106.03,79.27781011]
[1743980428784,69.4831254,106.08,106.04,0.28432314]
[1743980428785,0.063,106.08,106.04,0.28432314]
[1743980429113,0.063,106.08,106.03,0.14216157]
[1743980429387,0.063,106.08,106.05,0.28432314]
[1743980429758,0.063,106.08,106.05,69.84661011]
[1743980430076,0.063,106.08,106.07,0.28432314]
[1743980431099,69.4831254,106.08,106.03,95.4201254]
[1743980431397,69.4831254,106.08,106.04,0.28432314]
[1743980431566,9.4904,106.08,106.04,69.70444854]
[1743980431768,9.4904,106.08,106.04,69.56228697]
[1743980431970,0.063,106.08,106.04,78.99258697]
[1743980432174,0.063,106.08,106.06,0.14216157]
[1743980432582,0.063,106.08,106.07,69.4201254]
[1743980432763,0.063,106.08,106.07,0.14216157]
[1743980432963,0.063,106.08,106.01,9.433]
[1743980432964,78.9099254,106.08,106.01,9.433]
[1743980433185,69.4201254,106.07,106.02,69.56228697]
[1743980433370,78.9099254,106.08,106.03,69.4201254]
[1743980433573,78.9099254,106.08,106.04,0.14216157]
[1743980433767,0.063,106.08,106.04,69.56228697]
[1743980433969,0.063,106.08,106.07,0.28432314]
[1743980435468,0.063,106.08,106.07,95.70444854]
[1743980435669,0.063,106.08,106.07,105.27431011]
[1743980436294,0.063,106.08,106.07,95.70444854]
[1743980436479,0.063,106.08,106.07,26.28432314]
[1743980436673,0.063,106.08,106.07,0.42648471]
[1743980436875,0.063,106.1,106.09,26.28432314]
[1743980437080,0.063,106.1,106.08,0.28432314]
[1743980437666,69.4831254,106.1,106.06,0.28432314]
[1743980437866,69.4831254,106.1,106.04,0.14216157]
[1743980437867,69.4201254,106.09,106.03,9.4308]
[1743980438086,69.4201254,106.08,106.03,78.8509254]
[1743980438400,69.4201254,106.08,106.04,0.28432314]
[1743980438575,29.87264886,106.1,106.04,69.56228697]
[1743980438775,99.29277426,106.1,106.05,69.4201254]
[1743980438974,11.223,106.1,106.06,69.56228697]
[1743980439195,80.6431254,106.1,106.06,0.14216157]
[1743980439378,69.4201254,106.09,106.05,0.14216157]
[1743980439579,29.87264886,106.1,106.03,78.99348697]
[1743980439777,97.49567426,106.09,106.04,69.4201254]
[1743980440095,97.49567426,106.09,106.04,0.14216157]
[1743980440291,34.7876,106.1,106.06,0.14216157]
[1743980440292,80.6431254,106.1,106.06,0.14216157]
[1743980440496,0.063,106.1,106.06,95.70444854]
[1743980440794,0.063,106.1,106.08,69.70444854]
[1743980440968,0.063,106.1,106.08,0.28432314]
[1743980441729,0.063,106.1,106.08,9.71072314]
[1743980441990,0.063,106.1,106.09,69.4201254]
[1743980442191,0.063,106.1,106.09,69.84661011]
[1743980442573,0.063,106.1,106.09,88.49625897]
[1743980443781,0.063,106.1,106.09,97.92215897]
[1743980444274,0.063,106.1,106.08,85.3805254]
[1743980444777,0.063,106.1,106.08,75.9541254]
[1743980444974,0.063,106.1,106.09,69.70444854]
[1743980445390,0.063,106.1,106.09,0.28432314]
[1743980445597,0.063,106.1,106.09,69.70444854]
[1743980445986,0.063,106.1,106.09,79.13034854]
[1743980446186,0.063,106.1,106.09,79.27251011]
[1743980446387,0.063,106.1,106.09,97.92215897]
[1743980446586,0.063,106.11,106.1,19.07613357]
[1743980446786,0.063,106.12,106.11,0.28432314]
[1743980446987,0.063,106.12,106.11,69.84661011]
[1743980447708,0.063,106.12,106.11,88.49625897]
[1743980447894,0.063,106.12,106.11,97.92035897]
[1743980448078,0.063,106.12,106.11,78.98638697]
[1743980448278,0.063,106.12,106.11,26.14216157]
[1743980448483,0.063,106.12,106.11,95.56228697]
[1743980448784,0.063,106.12,106.09,9.4257]
[1743980448991,0.063,106.12,106.08,75.9541254]
[1743980449195,0.063,106.12,106.09,0.28432314]
[1743980449585,0.063,106.12,106.08,85.3806254]
[1743980449784,0.063,106.12,106.11,69.4201254]
[1743980449985,0.063,106.12,106.11,0.28432314]
[1743980450802,69.4831254,106.12,106.09,0.14216157]
[1743980451102,0.063,106.12,106.09,0.28432314]
[1743980451302,0.063,106.12,106.09,69.4201254]
[1743980451492,0.063,106.12,106.1,69.4201254]
[1743980451693,0.063,106.12,106.11,0.28432314]
[1743980451902,69.4831254,106.12,106.05,15.6774]
[1743980452095,69.4201254,106.1,106.05,78.8496254]
[1743980452298,69.4201254,106.1,106.06,0.28432314]
[1743980452692,0.063,106.12,106.06,69.56228697]
[1743980452883,0.063,106.12,106.07,69.4201254]
[1743980453085,0.063,106.12,106.08,69.70444854]
[1743980453486,78.9064254,106.12,106.08,0.28432314]
[1743980453903,69.4201254,106.11,106.08,0.28432314]
[1743980454099,69.4201254,106.1,106.05,78.8491254]
[1743980454309,9.425,106.11,106.06,0.28432314]
[1743980454508,0.063,106.12,106.06,69.84661011]
[1743980454685,69.4201254,106.11,106.06,0.28432314]
[1743980454891,69.4201254,106.1,106.06,0.28432314]
[1743980455310,18.71264886,106.12,106.06,69.70444854]
[1743980455511,88.13277426,106.12,106.07,69.4201254]
[1743980455810,0.063,106.12,106.08,69.70444854]
[1743980456019,69.4831254,106.12,106.08,9.71062314]
[1743980456593,0.063,106.12,106.1,0.28432314]
[1743980456825,0.063,106.12,106.11,69.4201254]
[1743980457127,0.063,106.12,106.1,69.84661011]
[1743980457290,0.063,106.12,106.11,69.4201254]
[1743980457493,0.063,106.12,106.1,69.84661011]
[1743980458332,0.063,106.12,106.11,9.4241]
[1743980459187,0.063,106.12,106.1,0.28432314]
[1743980459412,0.063,106.12,106.08,52.57297221]
[1743980460102,0.063,106.12,106.1,46.22957221]
[1743980460316,0.063,106.12,106.08,6.3434]
[1743980460523,0.063,106.12,106.1,46.37173378]
[1743980460701,0.063,106.12,106.11,46.65605692]
[1743980461314,0.063,106.13,106.12,18.933972]
[1743980461500,0.063,106.13,106.12,65.16354421]
[1743980461700,0.063,106.13,106.12,46.51389535]
[1743980461904,0.063,106.13,106.12,46.65605692]
[1743980462107,0.063,106.13,106.12,26.28432314]
[1743980462297,0.063,106.13,106.1,9.425]
[1743980462615,0.063,106.13,106.12,46.22957221]
[1743980462822,0.063,106.13,106.12,46.51389535]
[1743980463017,0.063,106.13,106.12,46.65605692]
[1743980463392,0.063,106.13,106.12,0.28432314]
[1743980463818,0.063,106.13,106.1,9.425]
[1743980464274,0.063,106.13,106.1,55.65457221]
[1743980464519,0.063,106.13,106.1,9.425]
[1743980464694,46.29257221,106.13,106.09,9.4255]
[1743980464896,0.063,106.13,106.09,9.4255]
[1743980465325,46.29257221,106.13,106.09,9.4255]
[1743980465720,46.29257221,106.13,106.06,46.22957221]
[1743980465721,46.22957221,106.1,106.06,46.22957221]
[1743980465899,46.22957221,106.1,106.07,9.4277]
[1743980466401,46.22957221,106.11,106.07,9.4277]
[1743980466801,9.424,106.12,106.07,9.4277]
[1743980467016,46.22957221,106.11,106.07,9.4277]
[1743980467216,74.36462107,106.13,106.08,46.51389535]
[1743980467624,46.22957221,106.12,106.08,0.28432314]
[1743980468327,0.063,106.13,106.09,9.4259]
[1743980468506,0.063,106.13,106.1,0.28432314]
[1743980469302,0.063,106.13,106.12,0.28432314]
[1743980469508,0.063,106.13,106.12,72.65605692]
[1743980469913,0.063,106.13,106.12,72.51389535]
[1743980470727,0.063,106.13,106.12,81.93709535]
[1743980471130,0.063,106.13,106.11,9.4237]
[1743980472526,0.063,106.13,106.11,55.65327221]
[1743980472844,0.063,106.13,106.1,23.84562314]
[1743980472845,0.063,106.13,106.12,55.93709535]
[1743980473062,0.063,106.13,106.12,56.07925692]
[1743980473254,0.063,106.13,106.12,74.72890578]
[1743980473851,0.0001,106.13,106.12,74.72890578]
[1743980474721,0.0431,106.14,106.13,0.14216157]
[1743980474921,0.0431,106.14,106.13,72.65605692]
[1743980475835,0.063,106.15,106.13,72.65605692]
[1743980475836,0.063,106.15,106.14,0.28432314]
[1743980476035,0.063,106.16,106.15,0.28432314]
[1743980476236,0.063,106.16,106.15,46.65605692]
[1743980476427,0.063,106.16,106.15,46.51389535]
[1743980476939,0.063,106.16,106.15,55.93449535]
[1743980477447,0.0001,106.16,106.15,74.72630578]
[1743980477639,0.0001,106.17,106.16,19.07613357]
[1743980477831,0.0001,106.17,106.16,65.30570578]
[1743980478926,0.0001,106.17,106.16,74.72540578]
[1743980481250,0.0001,106.17,106.16,79.38402611]
[1743980481453,0.0001,106.17,106.16,86.7907]
[1743980481844,0.03,106.23,106.19,45.07613357]
[1743980482165,0.03,106.23,106.21,0.28432314]
[1743980482580,0.03,106.23,106.2,0.28432314]
[1743980482778,0.03,106.23,106.2,0.42648471]
[1743980482948,0.03,106.23,106.2,0.28432314]
[1743980483151,0.03,106.23,106.2,56.07135692]
[1743980483470,0.03,106.23,106.2,0.28432314]
[1743980483783,0.03,106.23,106.2,35.70042314]
[1743980484379,46.25957221,106.23,106.18,55.64737221]
[1743980484547,46.25957221,106.23,106.19,0.28432314]
[1743980485183,0.03,106.23,106.19,0.28432314]
[1743980485349,55.67347221,106.23,106.19,0.28432314]
[1743980485549,46.22957221,106.22,106.19,0.28432314]
[1743980486071,46.22957221,106.22,106.19,9.70132314]
[1743980486266,55.67347221,106.23,106.19,9.70132314]
[1743980486448,55.67347221,106.23,106.19,0.28432314]
[1743980486650,0.03,106.23,106.2,9.4161]
[1743980486876,0.03,106.23,106.19,46.51389535]
[1743980487068,55.67307221,106.23,106.19,9.417]
[1743980487780,46.25957221,106.23,106.2,0.28432314]
[1743980487955,0.03,106.23,106.2,0.42648471]
[1743980488155,0.03,106.23,106.2,46.65605692]
[1743980488365,0.03,106.23,106.2,0.28432314]
[1743980489348,0.03,106.23,106.21,9.4153]
[1743980489553,0.03,106.23,106.22,46.51389535]
[1743980489855,0.03,106.23,106.22,0.28432314]
[1743980490058,0.03,106.23,106.22,46.51389535]
[1743980490269,0.03,106.23,106.22,46.65605692]
[1743980490681,0.03,106.23,106.22,0.28432314]
[1743980490983,0.03,106.23,106.21,26.0]
[1743980491192,0.03,106.23,106.2,9.4159]
[1743980491565,0.03,106.23,106.21,0.14216157]
[1743980491764,0.03,106.23,106.22,46.51389535]
[1743980492088,0.03,106.23,106.22,46.65605692]
[1743980492257,0.03,106.23,106.21,46.51389535]
[1743980492457,0.03,106.23,106.19,55.64647221]
[1743980492676,0.03,106.23,106.2,0.14216157]
[1743980492987,0.03,106.23,106.2,46.51389535]
[1743980493292,46.25957221,106.23,106.2,0.14216157]
[1743980493667,0.03,106.23,106.2,0.14216157]
[1743980493860,55.67317221,106.23,106.19,0.14216157]
[1743980494187,55.67317221,106.23,106.19,0.28432314]
[1743980494696,46.25957221,106.23,106.19,0.28432314]
[1743980495062,0.03,106.23,106.19,0.28432314]
[1743980495275,0.03,106.23,106.19,46.51389535]
[1743980495484,0.03,106.23,106.21,0.28432314]
[1743980496594,46.25957221,106.23,106.17,0.14216157]
[1743980496899,57.35957221,106.23,106.19,0.14216157]
[1743980497087,11.13,106.23,106.19,46.37173378]
[1743980497397,11.13,106.23,106.2,0.14216157]
[1743980497595,57.35957221,106.23,106.2,0.14216157]
[1743980497899,66.77307221,106.23,106.19,0.14216157]
[1743980498269,66.77307221,106.23,106.19,9.70122314]
[1743980499392,0.03,106.23,106.19,9.70122314]
[1743980499707,46.22957221,106.2,106.13,32.9784]
[1743980499873,46.22957221,106.18,106.13,60.36430742]
[1743980500069,46.22957221,106.19,106.14,46.43473378]
[1743980500270,11.1,106.2,106.15,46.22957221]
[1743980500474,11.1,106.21,106.16,0.28432314]
[1743980500806,57.32957221,106.21,106.16,46.51389535]
[1743980501303,11.1,106.21,106.18,0.28432314]
[1743980501471,11.1,106.21,106.19,9.417]
[1743980501803,47.85587221,106.23,106.2,0.28432314]
[1743980502209,57.26947221,106.23,106.15,42.20024886]
[1743980502372,46.22957221,106.2,106.14,0.20516157]
[1743980502572,46.22957221,106.18,106.14,0.063]
[1743980502791,46.22957221,106.16,106.14,0.063]
[1743980503297,46.22957221,106.15,106.14,0.063]
[1743980503606,28.07024886,106.15,106.14,0.063]
[1743980503788,74.29982107,106.15,106.14,0.063]
[1743980505985,46.22957221,106.15,106.14,0.063]
[1743980506295,55.65017221,106.15,106.14,0.063]
[1743980506499,74.29982107,106.15,106.14,0.063]
[1743980507093,74.44198264,106.15,106.14,0.0001]
[1743980507280,18.64964886,106.13,106.08,0.063]
[1743980507582,46.22957221,106.09,106.08,0.063]
[1743980507786,55.65547221,106.09,106.08,0.063]
[1743980508379,46.22957221,106.1,106.08,0.063]
[1743980508904,46.22957221,106.09,106.08,0.063]
[1743980509498,46.22957221,106.1,106.08,0.063]
[1743980509707,28.07424886,106.11,106.08,0.063]
[1743980510022,20.5236,106.12,106.08,0.063]
[1743980510209,46.22957221,106.1,106.08,0.063]
[1743980510412,11.1,106.12,106.08,0.063]
[1743980510719,46.22957221,106.11,106.08,0.063]
[1743980511020,47.85407221,106.14,106.1,0.28432314]
[1743980511323,11.1,106.15,106.1,72.51389535]
[1743980511514,11.1,106.15,106.12,0.28432314]
[1743980511899,11.1,106.15,106.12,9.70672314]
[1743980512513,69.91303378,106.2,106.15,0.28432314]
[1743980512514,26.5167,106.2,106.15,0.28432314]
[1743980512721,46.22957221,106.19,106.15,0.28432314]
[1743980513224,91.39592107,106.2,106.13,0.28432314]
[1743980513525,46.22957221,106.17,106.13,0.28432314]
[1743980513901,55.64917221,106.17,106.13,0.28432314]
[1743980515022,28.06754886,106.18,106.13,9.70642314]
[1743980515222,28.06754886,106.18,106.13,55.93599535]
[1743980515430,46.22957221,106.17,106.13,0.28432314]
[1743980515798,46.22957221,106.15,106.11,26.0]
[1743980516205,46.22957221,106.15,106.08,0.063]
[1743980516206,46.22957221,106.13,106.08,0.063]
[1743980516407,46.22957221,106.13,106.09,0.28432314]
[1743980516711,46.22957221,106.13,106.08,46.29257221]
[1743980517029,46.22957221,106.12,106.09,0.28432314]
[1743980517223,55.65217221,106.13,106.09,0.28432314]
[1743980517419,55.65217221,106.13,106.08,55.71867221]
[1743980517613,9.4226,106.13,106.08,55.71867221]
[1743980517812,55.65217221,106.13,106.08,55.71867221]
[1743980518009,55.65217221,106.13,106.08,0.063]
[1743980518326,18.64964886,106.12,106.08,0.063]
[1743980518530,46.22957221,106.09,106.08,0.063]
[1743980518711,64.87922107,106.09,106.08,0.063]
[1743980519208,74.30512107,106.09,106.08,0.063]
[1743980521128,11.1,106.1,106.08,0.063]
[1743980521320,46.22957221,106.1,106.08,0.063]
[1743980521632,64.87922107,106.09,106.08,0.063]
[1743980522214,0.14216157,106.07,106.05,0.063]
[1743980522406,75.97922107,106.06,106.05,0.063]
[1743980522601,85.40782107,106.06,106.05,0.063]
[1743980522823,39.17824886,106.06,106.05,0.063]
[1743980523230,85.40782107,106.06,106.05,0.063]
[1743980524608,26.0,106.02,105.99,0.03]
[1743980524815,46.22957221,106.0,105.99,0.03]
[1743980525023,65.02138264,106.0,105.99,0.03]
[1743980525229,18.79181043,105.99,105.97,0.063]
[1743980525412,88.9873,106.0,105.97,0.063]
[1743980525614,1.5299,106.0,105.97,0.063]
[1743980525825,46.22957221,105.98,105.97,0.063]
[1743980526027,74.31492107,105.98,105.97,0.063]
[1743980526849,398.29708264,105.98,105.97,0.063]
[1743980527334,421.65557554,105.98,105.97,0.063]
[1743980527506,421.93989868,105.98,105.97,0.063]
[1743980528713,352.06751043,105.98,105.97,0.063]
[1743980529040,421.65557554,105.98,105.97,0.063]
[1743980530137,351.92534886,105.98,105.97,0.063]
[1743980530354,342.48964886,105.98,105.97,0.063]
[1743980530648,334.94,105.98,105.97,0.063]
[1743980531013,404.52806511,105.98,105.97,0.063]
[1743980531736,334.94,105.98,105.97,0.063]
[1743980532145,11.1,106.02,105.97,9.4996]
[1743980532447,69.58806511,106.0,105.97,0.063]
[1743980532947,69.58806511,105.98,105.97,0.063]
[1743980533746,11.1,106.02,105.97,0.063]
[1743980533923,69.58806511,105.99,105.97,0.063]
[1743980534241,97.67341397,105.98,105.97,0.063]
[1743980535048,97.81557554,105.98,105.97,0.063]
[1743980535430,18.79181043,105.97,105.93,0.03]
[1743980535750,88.23771397,105.94,105.93,0.03]
[1743980535934,88.37987554,105.94,105.93,0.03]
[1743980536252,18.79181043,105.93,105.89,0.03]
[1743980536462,184.25226379,105.9,105.89,0.03]
[1743980536828,184.25226379,105.9,105.84,0.03]
[1743980536829,0.14216157,105.88,105.84,0.03]
[1743980537136,11.1,105.87,105.84,9.4781]
[1743980537326,11.1,105.87,105.84,79.06616511]
[1743980537750,324.04,105.88,105.85,69.58806511]
[1743980537923,324.04,105.88,105.86,69.58806511]
[1743980538126,324.04,105.88,105.87,0.28432314]
[1743980538420,69.58806511,105.91,105.87,0.28432314]
[1743980538922,97.67881397,105.92,105.87,69.87238825]
[1743980539133,69.58806511,105.89,105.84,0.03]
[1743980539340,80.68806511,105.88,105.84,0.03]
[1743980539538,69.58806511,105.87,105.84,0.03]
[1743980539742,80.68806511,105.88,105.84,0.03]
[1743980539950,11.1,105.88,105.84,0.03]
[1743980540129,90.13346511,105.88,105.84,0.03]
[1743980540334,69.58806511,105.87,105.84,0.03]
[1743980540753,88.23771397,105.85,105.84,0.03]
[1743980541237,157.96794065,105.85,105.84,0.0001]
[1743980541437,0.28432314,105.83,105.82,0.0001]
[1743980541655,0.14216157,105.79,105.78,4.217e-05]
[1743980541953,0.14216157,105.79,105.66,178.38681651]
[1743980541954,0.14216157,105.75,105.66,176.87651651]
[1743980542157,69.58806511,105.7,105.66,186.34051651]
[1743980542349,18.64964886,105.73,105.67,69.58806511]
[1743980542540,69.58806511,105.73,105.68,69.58806511]
[1743980543164,69.58806511,105.71,105.66,176.87651651]
[1743980543353,69.58806511,105.69,105.66,176.87651651]
[1743980543855,11.1,105.7,105.66,176.87651651]
[1743980544032,11.1,105.7,105.67,69.58806511]
[1743980544238,11.1,105.7,105.66,176.87651651]
[1743980544438,11.1,105.7,105.67,69.58806511]
[1743980544648,29.74964886,105.73,105.66,186.34051651]
[1743980544866,324.22,105.74,105.7,69.58806511]
[1743980545061,393.80806511,105.74,105.69,95.58806511]
[1743980545261,69.58806511,105.7,105.66,176.87651651]
[1743980545466,335.58,105.8,105.7,0.14216157]
[1743980545644,69.58806511,105.77,105.72,69.58806511]
[1743980545838,69.58806511,105.78,105.74,0.28432314]
[1743980546046,335.58,105.8,105.74,69.87238825]
[1743980546248,69.58806511,105.79,105.74,69.87238825]
[1743980546460,69.58806511,105.79,105.74,79.32938825]
[1743980546661,69.58806511,105.79,105.74,69.87238825]
[1743980546878,405.16806511,105.8,105.75,69.58806511]
[1743980547162,335.58,105.8,105.76,69.58806511]
[1743980547966,405.16806511,105.8,105.75,69.87238825]
[1743980548267,335.58,105.8,105.76,79.04286511]
[1743980548567,69.58806511,105.81,105.76,69.58806511]
[1743980548951,69.58806511,105.8,105.75,69.87238825]
[1743980549148,69.58806511,105.79,105.74,79.04486511]
[1743980549455,11.26216157,105.82,105.74,79.04486511]
[1743980549456,69.58806511,105.81,105.76,69.58806511]
[1743980549661,80.70806511,105.82,105.77,0.28432314]
[1743980549875,11.12,105.82,105.78,0.28432314]
[1743980550174,324.52,105.85,105.78,69.87238825]
[1743980550386,80.70806511,105.84,105.8,9.73572314]
[1743980550853,11.12,105.84,105.8,9.73572314]
[1743980551248,80.70806511,105.84,105.8,9.73572314]
[1743980551780,11.12,105.84,105.8,79.32378825]
[1743980551951,324.52,105.85,105.82,69.87238825]
[1743980552443,324.56,105.91,105.84,69.87238825]
[1743980552643,11.12,105.9,105.84,69.87238825]
[1743980552969,69.58806511,105.88,105.84,0.28432314]
[1743980553187,69.58806511,105.86,105.83,0.28432314]
[1743980553338,69.58806511,105.85,105.8,9.73572314]
[1743980553543,18.64964886,105.85,105.8,9.59356157]
[1743980553759,18.64964886,105.85,105.81,69.58806511]
[1743980554072,88.23771397,105.85,105.79,9.4523]
[1743980554281,18.64964886,105.85,105.81,69.58806511]
[1743980554571,11.12,105.86,105.82,69.58806511]
[1743980554868,11.12,105.86,105.83,69.58806511]
[1743980555068,11.12,105.86,105.82,69.58806511]
[1743980555373,11.12,105.86,105.83,69.58806511]
[1743980555542,11.12,105.86,105.81,69.58806511]
[1743980555543,80.70806511,105.86,105.81,69.58806511]
[1743980555744,88.23771397,105.85,105.8,69.87238825]
[1743980555943,69.58806511,105.84,105.79,69.58806511]
[1743980556162,69.58806511,105.82,105.77,69.58806511]
[1743980556374,88.23771397,105.81,105.76,69.58806511]
[1743980556867,69.58806511,105.8,105.75,69.87238825]
[1743980557069,11.12,105.82,105.78,69.58806511]
[1743980557269,324.52,105.83,105.8,69.58806511]
[1743980557655,324.52,105.83,105.8,1.01]
[1743980557848,18.64964886,105.82,105.8,1.01]
[1743980558047,88.23771397,105.82,105.8,1.01]
[1743980558460,324.52,105.83,105.8,70.59806511]
[1743980558754,18.64964886,105.86,105.81,0.28432314]
[1743980558968,18.64964886,105.86,105.8,1.01]
[1743980558969,18.64964886,105.84,105.8,1.01]
[1743980559169,18.64964886,105.84,105.8,70.59806511]
[1743980559768,11.12,105.87,105.81,69.87238825]
[1743980559965,18.64964886,105.86,105.82,69.58806511]
[1743980560160,11.12,105.87,105.83,69.87238825]
[1743980560366,11.12,105.87,105.84,69.58806511]
[1743980561072,11.12,105.87,105.83,79.03666511]
[1743980561273,11.12,105.87,105.83,9.4486]
[1743980561473,88.23771397,105.86,105.81,0.28432314]
[1743980561776,88.23771397,105.86,105.81,69.87238825]
[1743980562279,88.23771397,105.86,105.81,69.58806511]
[1743980562579,69.58806511,105.85,105.8,70.59806511]
[1743980562762,18.64964886,105.86,105.81,69.58806511]
[1743980562763,88.23771397,105.86,105.81,69.58806511]
[1743980563355,11.12,105.87,105.83,46.47180675]
[1743980563776,11.12,105.87,105.84,46.47180675]
[1743980564162,324.52,105.89,105.86,46.47180675]
[1743980564359,324.52,105.89,105.87,46.47180675]
[1743980564649,324.52,105.89,105.86,46.75612989]
[1743980564875,324.52,105.89,105.86,0.28432314]
[1743980565077,65.12145561,105.91,105.86,0.28432314]
[1743980565261,65.12145561,105.91,105.86,46.75612989]
[1743980565262,18.64964886,105.91,105.86,46.75612989]
[1743980565468,18.67964886,105.91,105.87,46.47180675]
[1743980566478,0.03,105.91,105.85,0.42648471]
[1743980566664,18.67964886,105.91,105.85,0.28432314]
[1743980566863,46.61396832,105.87,105.8,1.01]